Cogmind - Beta 11.1 @@@ ROGUE MODE // 2022.11.13 @ 17:59:41 Player: Candesce Result: Self-destructed Performance ------------- Evolutions (6) 3000 Regions Visited (29) 5800 Robots Destroyed (386) 1930 Value Destroyed (17933) 17933 Prototype IDs (60) 1200 Alien Tech Used (0) 0 Bonus (8936) 8936 TOTAL SCORE: 38799 Bonus ------- High Alert Combat Kills 1305 Follower Combat Kills 3116 Entered Garrisons 1000 Used RIF Installer 2500 Network Hubs Disabled 600 Aligned with FarCom 300 Met Data Miner 300 Met R17 at Cetus 500 Friendly Fire -685 Cogmind --------- Core Integrity 947/1150 Matter 112/300 Energy 415/420 System Corruption 16% Temperature Cool (0) Movement Treading (250) Ox1 Location -4/Armory Parts ------- > --- POWER (2) -------- Mini Fusion Reactor Reinforced Quantum Reactor > --- PROPULSION (4) --- Advanced Heavy Siege Treads > --- UTILITY (9) ------ High-capacity Storage Unit Advanced Targeting Computer Advanced Targeting Computer Advanced Target Analyzer Improved Armor Integrity Analyzer Improved Core Shielding Layered Heavy Armor Plating Graphene Brace > --- WEAPON (4) ------- KE Penetrator Railgun Power Maul > --- INVENTORY (20) --- Cooled Fission Core Advanced Matter Compressor (166) Centrium Medium Armor Plating Experimental Thermal Shield Relay Coupler [NC] (32) Long-range Tractor Beam Improved KE Penetrator Railgun Advanced KE Penetrator XL Autogun Array Remote Datajack Peak State ------------ > --- POWER ------------ Reinforced Fission Core Quantum Reactor > --- PROPULSION ------- Biometal Heavy Treads Advanced Heavy Siege Treads > --- UTILITY ---------- Improved Cooling System High-capacity Storage Unit Advanced Matter Compressor Advanced Targeting Computer Advanced Targeting Computer Improved Armor Integrity Analyzer Centrium Medium Armor Plating Graphene Brace Experimental Thermal Shield > --- WEAPON ----------- Railgun Railgun Railgun Advanced KE Penetrator > --- INVENTORY -------- Advanced Heavy Siege Treads Matter Compressor Advanced Transmission Jammer Advanced Transmission Jammer Advanced Cloaking Device Centrium Medium Armor Plating Relay Coupler [NC] Relay Coupler [Demolisher] Long-range Tractor Beam KE Penetrator KE Penetrator Railgun Railgun XL Autogun Array Remote Datajack Power Maul [Rating: 144] Favorites ----------- Power Reinforced Deuterium Engine Engine Reinforced Deuterium Engine Power Core Enhanced Fission Core Reactor Compact Particle Reactor Propulsion Improved Treads Treads Improved Treads Wheel Armored Huge Wheel Utility High-capacity Storage Unit Device Improved Cooling System Storage High-capacity Storage Unit Processor Advanced Targeting Computer Hackware Improved System Shield Protection Centrium Medium Armor Plating Weapon KE Penetrator Energy Gun Beamcaster Energy Cannon Beam Cannon Ballistic Gun KE Penetrator Launcher Tiamat Missile Launcher Special Weapon Remote Datajack Impact Weapon Power Maul Piercing Weapon Spear Build | -11 -10 -10 -10 -9 -8 -8 -8 -8 -7 -7 -7 -7 -7 -7 -6 -6 -6 -6 -6 -5 -5 -5 -5 -5 -5 -4 -4 -4 -4 ------- Run | Scr Mat Min Exi Min Mat Gar Mat Gar Fac Was Fac Low Low Dat Pro Fac Gar Fac Gar Fac Ext Cet Arc Hub Gar Fac Was Fac Arm Slots Evolved 12 | . . . . . 4 . . . 2 . . . . . . 2 . . . 2 . . . . . 2 . . . Power 1 | . . . . . . . . . . . . . . . . . . . . . . . . . . 1 . . . Propulsion 2 | . . . . . 1 . . . . . . . . . . . . . . . . . . . . 1 . . . Utility 7 | . . . . . 1 . . . 2 . . . . . . 2 . . . 2 . . . . . . . . . Weapon 2 | . . . . . 2 . . . . . . . . . . . . . . . . . . . . . . . . Parts Attached 335 | 8 4 4 2 5 5 6 14 1 5 6 27 13 10 4 11 9 2 15 18 44 20 12 1 9 18 2 1 17 42 Power 21 | 1 . . . 2 . 1 1 . . . 2 1 2 . . . . . 1 1 1 . . . 1 1 . . 6 Engine 8 | 1 . . . 2 . . . . . . 1 1 2 . . . . . 1 . . . . . . . . . . Core 9 | . . . . . . 1 1 . . . 1 . . . . . . . . 1 . . . . 1 1 . . 3 Reactor 4 | . . . . . . . . . . . . . . . . . . . . . 1 . . . . . . . 3 Propulsion 34 | 2 2 2 . 1 2 . 3 1 . . 4 2 . . . . 1 1 . 4 1 1 . . 1 1 . 1 4 Treads 32 | 2 2 2 . 1 2 . 2 . . . 4 2 . . . . 1 1 . 4 1 1 . . 1 1 . 1 4 Leg . | . . . . . . . . . . . . . . . . . . . . . . . . . . . . . . Wheel 2 | . . . . . . . 1 1 . . . . . . . . . . . . . . . . . . . . . Hover . | . . . . . . . . . . . . . . . . . . . . . . . . . . . . . . Flight . | . . . . . . . . . . . . . . . . . . . . . . . . . . . . . . Utility 141 | 2 2 . . 1 1 . 4 . 2 1 16 4 6 . 7 5 . 4 8 19 10 4 1 7 9 . . 11 17 Device 78 | 1 1 . . . 1 . 2 . 1 1 9 4 4 . 4 4 . 1 5 11 4 1 . 3 5 . . 7 9 Storage 5 | 1 1 . . . . . 1 . . . . . . . . . . . . . 1 . . . . . . . 1 Processor 17 | . . . . 1 . . 1 . . . 2 . 1 . 1 . . 2 . 2 1 . . . . . . 2 4 Hackware 15 | . . . . . . . . . . . . . . . 1 1 . . 3 3 1 . 1 2 2 . . . 1 Protection 26 | . . . . . . . . . 1 . 5 . 1 . 1 . . 1 . 3 3 3 . 2 2 . . 2 2 Artifact . | . . . . . . . . . . . . . . . . . . . . . . . . . . . . . . Weapon 139 | 3 . 2 2 1 2 5 6 . 3 5 5 6 2 4 4 4 1 10 9 20 8 7 . 2 7 . 1 5 15 Energy Gun 21 | 1 . . . . . 1 3 . 2 2 1 3 1 2 1 2 1 1 . . . . . . . . . . . Energy Cannon 6 | . . 1 1 . 2 1 . . . . . . . . . . . 1 . . . . . . . . . . . Ballistic Gun 84 | 2 . 1 1 1 . 2 3 . . 2 3 . 1 2 2 2 . 5 7 13 7 7 . 2 4 . 1 5 11 Ballistic Cannon . | . . . . . . . . . . . . . . . . . . . . . . . . . . . . . . Launcher 2 | . . . . . . . . . . . . . . . . . . 1 . . . . . . 1 . . . . Special Weapon 11 | . . . . . . . . . 1 1 . 2 . . 1 . . 1 2 2 1 . . . . . . . . Impact Weapon 14 | . . . . . . 1 . . . . 1 . . . . . . 1 . 5 . . . . 2 . . . 4 Slashing Weapon . | . . . . . . . . . . . . . . . . . . . . . . . . . . . . . . Piercing Weapon 1 | . . . . . . . . . . . . 1 . . . . . . . . . . . . . . . . . Special Melee Weapon . | . . . . . . . . . . . . . . . . . . . . . . . . . . . . . . Unidentified Prototypes 16 | . . . . . . . 2 . . . . 1 . . 1 . . 1 . 2 2 3 . . . . . 1 3 Corrupted Parts 1 | . . . . . . . . . . . . . . . . . . . . . . . . 1 . . . . . System Corruption 1 | . . . . . . . . . . . . . . . . . . . . . . . . 1 . . . . . Parts Lost 35 | . . 3 . 3 1 2 . . . . 1 2 . . 1 . . . 1 1 2 1 . 1 2 . . 4 10 Power 1 | . . . . 1 . . . . . . . . . . . . . . . . . . . . . . . . . Propulsion 8 | . . 1 . 1 1 . . . . . 1 . . . . . . . . . 1 . . . . . . 1 2 Utility 12 | . . 1 . . . . . . . . . 1 . . . . . . 1 1 . 1 . 1 . . . 2 4 Weapon 14 | . . 1 . 1 . 2 . . . . . 1 . . 1 . . . . . 1 . . . 2 . . 1 4 Highest Loss Streak 4 | . . 3 . 1 1 1 . . . . 1 1 . . 1 . . . 1 1 2 1 . 1 1 . . 4 4 To Critical Strikes . | . . . . . . . . . . . . . . . . . . . . . . . . . . . . . . Average Slot Usage (%) 90 | . 100 97 62 88 98 99 96 90 92 92 91 75 87 63 91 91 93 92 92 92 93 93 94 93 93 89 88 88 88 Engine 3 | . 14 14 14 13 9 4 . . . . 1 7 7 7 7 6 6 6 6 . . . . . . . . . . Core 3 | . . . . . . 4 9 9 7 7 5 . . . . . . . . 4 4 . . . 4 10 10 10 4 Treads 14 | . 28 27 28 27 26 27 21 9 7 7 9 15 15 15 15 13 13 13 13 10 11 11 11 11 11 10 10 10 9 Device 12 | . 14 11 . . 9 9 9 9 15 15 8 8 14 15 15 24 26 20 15 19 14 9 . 4 12 10 10 12 20 Storage 7 | . 14 14 14 14 9 9 9 9 7 7 7 7 7 7 7 6 6 6 6 5 5 5 5 5 5 5 5 5 5 Processor 11 | . . . . 4 9 9 9 9 7 7 11 . 4 7 8 8 6 8 20 16 19 23 23 21 17 15 15 20 19 Hackware 1 | . . . . . . . . . . . . . . . 1 3 6 4 . 4 . . 4 3 . 5 5 1 . Protection 5 | . . . . . . . . . 7 7 9 5 5 7 4 . . 4 2 3 11 12 17 14 14 10 10 5 1 Energy Gun 5 | . 14 11 . . . 5 9 9 5 11 9 12 11 1 15 13 13 7 . . . . . . . . . . . Energy Cannon 1 | . . 2 2 14 26 14 2 . . . . . . . . . . . . . . . . . . . . . . Ballistic Gun 17 | . 14 13 2 13 9 14 23 27 23 15 14 15 15 1 14 13 13 18 25 19 22 23 23 22 21 21 20 20 18 Naked Turns . | . . . . . . . . . . . . . . . . . . . . . . . . . . . . . . Heaviest Build 127 | 15 50 50 50 52 58 59 62 60 69 75 82 86 84 80 81 80 80 92 86 95 98 99 99 99 107 113 113 114 127 Greatest Support 160 | 40 46 46 46 46 69 69 69 28 28 28 93 98 98 98 98 98 98 100 100 100 97 107 107 107 107 160 160 160 160 Greatest Overweight (x) 3 | . 1 1 1 1 1 . 2 2 2 2 3 . . . . . . . . 1 1 . . . . . . . . Average Overweight (x) . | . . 1 . 1 . . . 2 2 2 1 . . . . . . . . . . . . . . . . . . Largest Inventory Capacity 20 | 8 20 20 20 20 20 20 20 20 20 20 20 20 20 20 20 20 20 20 20 20 20 20 20 20 20 20 20 20 20 Average Capacity 19 | 7 10 20 20 20 20 20 20 20 20 20 20 20 20 20 20 20 20 20 20 20 20 20 20 20 20 20 20 20 20 Most Carried 20 | 1 13 14 19 18 17 20 20 20 20 20 20 20 20 19 20 20 20 20 20 20 20 20 20 20 20 20 20 20 20 Average Carried 18 | . 7 13 15 16 14 18 19 19 19 19 19 19 19 19 19 19 19 19 19 19 19 19 19 19 19 19 19 19 19 Final Capacity 20 | 8 20 20 20 20 20 20 20 20 20 20 20 20 20 20 20 20 20 20 20 20 20 20 20 20 20 20 20 20 20 Final Carried 20 | 1 13 12 17 18 14 19 20 20 19 20 20 20 19 19 20 20 20 20 20 19 20 20 20 20 20 20 20 19 14 Class Distribution -------------------- 20% | Scavenger-Gunner 16% | Mutant 13% | Gunner 11% | Skirmisher 11% | Derelict-Gunner 4% | Scavenger-Skirmisher 3% | Tank 3% | Derelict-Skirmisher 3% | Commander-Gunner Dominant Class ---------------- Mutant | -10/Materials Mutant | -10/Mines Mutant | -10/Exiles Mutant | -9/Mines Skirmisher | -8/Materials Scavenger-Skirmisher | -8/Garrison Skirmisher | -8/Materials Skirmisher | -8/Garrison Skirmisher | -7/Factory Derelict-Mutant | -7/Waste Skirmisher | -7/Factory Mutant | -7/Lower Caves Derelict-Gunner | -7/Lower Caves Mutant | -7/Data Miner Derelict-Gunner | -6/Proximity Caves Derelict-Skirmisher | -6/Factory Scavenger-Skirmisher | -6/Garrison Bothacker-Tank | -6/Factory Gunner | -6/Garrison Gunner | -5/Factory Commander-Gunner | -5/Extension Scavenger-Gunner | -5/Cetus Scavenger-Gunner | -5/Archives Scavenger-Gunner | -5/Hub_04(d) Scavenger-Gunner | -5/Garrison Scavenger-Gunner | -4/Factory Scavenger-Gunner | -4/Waste Scavenger-Gunner | -4/Factory Gunner | -4/Armory Resources | -11 -10 -10 -10 -9 -8 -8 -8 -8 -7 -7 -7 -7 -7 -7 -6 -6 -6 -6 -6 -5 -5 -5 -5 -5 -5 -4 -4 -4 -4 ----------- Run | Scr Mat Min Exi Min Mat Gar Mat Gar Fac Was Fac Low Low Dat Pro Fac Gar Fac Gar Fac Ext Cet Arc Hub Gar Fac Was Fac Arm Matter Collected 16515 | 238 405 56 . 154 44 165 726 254 195 119 555 2113 512 . 325 135 214 410 600 1456 821 618 266 607 688 148 314 1034 3343 Remotely 1779 | . . . . . . . . . . . 95 . 95 . . . . . 258 . 220 . . 176 219 . . . 716 Salvage Created 20448 | 47 420 49 . 143 51 420 1305 434 324 . 830 1619 162 . 326 50 175 460 872 1447 1151 1068 524 1443 855 476 1666 1404 2727 Parts 961 | 6 34 8 . 10 3 17 84 20 24 . 38 35 3 . 16 2 10 31 33 74 53 57 30 90 44 19 30 67 123 Haulers Intercepted 10 | . 2 . . . . . 5 . 1 . . . . . . . . 1 . . 1 . . . . . . . . Recyclers Shooed 9 | . . . . 2 . . 2 . . . . . . . . . . 1 . . 2 . . . . . . 2 . Parts Field Recycled . | . . . . . . . . . . . . . . . . . . . . . . . . . . . . . . Retrieved Matter . | . . . . . . . . . . . . . . . . . . . . . . . . . . . . . . Parts Self-Destructed 86 | . . . . . . . . . . . . 22 24 . 40 . . . . . . . . . . . . . . Prevented . | . . . . . . . . . . . . . . . . . . . . . . . . . . . . . . Kills | -11 -10 -10 -10 -9 -8 -8 -8 -8 -7 -7 -7 -7 -7 -7 -6 -6 -6 -6 -6 -5 -5 -5 -5 -5 -5 -4 -4 -4 -4 ------- Run | Scr Mat Min Exi Min Mat Gar Mat Gar Fac Was Fac Low Low Dat Pro Fac Gar Fac Gar Fac Ext Cet Arc Hub Gar Fac Was Fac Arm Combat Hostiles Destroyed 299 | . 8 5 . 5 1 9 22 12 6 . 12 9 3 . 7 1 5 10 18 16 13 20 4 22 16 7 6 16 46 Melee 3 | . . . . 1 . . . . . . . . . . . . . . . . . . . . . . . . 2 Guns 282 | . 8 3 . 3 1 5 21 12 6 . 12 9 3 . 7 1 5 5 18 16 13 20 4 22 16 7 6 16 43 Cannons 8 | . . 2 . 1 . 4 1 . . . . . . . . . . . . . . . . . . . . . . AOE 6 | . . . . . . . . . . . . . . . . . . 5 . . . . . . . . . . 1 Classes Destroyed 23 | 1 8 1 . . 1 2 . . 1 . . 2 . . 2 . . 1 . . . . . 2 . . 1 . 1 Worker 23 | . 1 2 . . . . 5 . 1 . 6 . . . . . . 3 . 1 3 . . . . . . 1 . Builder 7 | . 1 . . . . . . . . . 1 . . . . . . . . . 2 . . . . . . 3 . Tunneler 5 | 2 . . . . . . 1 . . . 1 . . . . . . . . . . . . . . . . 1 . Hauler 10 | . 2 . . . . . 5 . 1 . . . . . . . . 1 . . 1 . . . . . . . . Recycler 8 | . 1 . . . . . . . . . 2 . . . . . . . . 5 . . . . . . . . . Minesweeper 2 | . . . . . . . . . . . . 1 . . 1 . . . . . . . . . . . . . . Mechanic 1 | . . . . . . . . . . . . . . . 1 . . . . . . . . . . . . . . Operator 10 | . 1 . . . . . 2 . . . . . . . . . . 1 . . . . 5 . . . . 1 . Watcher 19 | . 2 . . . . . 4 . 1 . . . . . . . . . . 3 . . . 2 . . . 4 3 Swarmer 72 | . 6 3 . 1 . . 10 4 2 . . 3 1 . 4 . 3 . 7 6 1 5 . . 5 1 . . 10 Saboteur 3 | . . . . . . . . . . . . . . . . . . . . . . . . . . . . . 3 Grunt 89 | . 2 . . 4 . 5 8 7 1 . 3 3 . . . 1 1 . 9 4 6 6 . 7 5 6 . 5 6 Brawler 2 | . . . . . . . . . . . . 1 . . . . . . . . . . . . 1 . . . . Duelist 10 | . . . . . . 1 . 1 . . . . 2 . . . . . 2 . . 1 . . . . . . 3 Protector 2 | . . . . . . . . . . . . . . . . . . 2 . . . . . . . . . . . Sentry 36 | . . . . . 1 2 4 . . . 2 1 . . 1 . . . . 2 5 . 4 2 2 . . 5 5 Demolisher 2 | . . 2 . . . . . . . . . . . . . . . . . . . . . . . . . . . Specialist 6 | . . . . . . . . . . . . . . . . . . . . . . . . 4 . . . . 2 Hunter 20 | . . . . . . 1 . . . . 2 . . . . . 1 2 . . . 2 . 2 2 . . 2 6 Programmer 40 | . . . . . . . . . 3 . 5 1 . . 1 . . 6 1 4 . . . 6 . . . 4 9 Heavy 2 | . . . . . . . . . . . . . . . . . . . . . . . . 1 . . . . 1 Behemoth 4 | . . . . . . . . . . . . . . . 1 . . . . . 1 . . . 1 . . . 1 Compactor 6 | . . . . . . . . . . . . . . . . . . . . . . . . . . . 6 . . Cetus Guard 6 | . . . . . . . . . . . . . . . . . . . . . . 6 . . . . . . . Thug 1 | . . . . . . . . . . . . . . . . . . . . . 1 . . . . . . . . Best Kill Streak 11 | 2 5 3 . 3 1 4 8 4 3 . 6 3 2 . 2 1 3 9 6 4 6 5 5 8 5 4 4 11 8 Combat Bots Only 8 | . 3 3 . 3 1 4 6 4 2 . 3 3 2 . 2 1 3 7 6 4 5 5 4 8 5 4 4 6 8 Max Kills in Single Turn 5 | 1 2 1 . 1 1 1 3 1 1 . 5 1 1 . 2 1 2 5 3 2 2 2 1 2 3 2 1 2 3 Gunslinging 2 | . . . . . . . . . . . . . . . 1 . 1 . 2 1 1 1 . 1 . 1 . 1 2 Exploded 4 | . . . . . . . . . . . . . . . . . . 4 . . . . . . . . . . 1 Melee 1 | . . . . 1 . . . . . . . . . . . . . . . . . . . . . . . . 1 Uniques/NPCs Destroyed . | . . . . . . . . . . . . . . . . . . . . . . . . . . . . . . Combat | -11 -10 -10 -10 -9 -8 -8 -8 -8 -7 -7 -7 -7 -7 -7 -6 -6 -6 -6 -6 -5 -5 -5 -5 -5 -5 -4 -4 -4 -4 -------- Run | Scr Mat Min Exi Min Mat Gar Mat Gar Fac Was Fac Low Low Dat Pro Fac Gar Fac Gar Fac Ext Cet Arc Hub Gar Fac Was Fac Arm Damage Taken 18242 | . 205 536 . 314 193 566 441 245 254 . 1525 525 145 . 581 . 313 724 736 848 579 996 227 1361 547 631 30 1723 3997 Core 1494 | . 26 129 . 35 15 53 70 63 43 . 126 . 67 . 78 . 50 80 44 54 34 66 . 258 . 32 . 47 124 Absorbed by Shields 1786 | . . . . . . . . . . . . . . . . . . . . . 159 378 . . 14 . . . 1235 Reduced by Siege Mode 913 | . . . . . . . . . . . . . . . . . . . 15 14 41 23 . 7 . 4 . 221 588 Redirected to Shielding 20 | . . . . . . . . . . . . . . . . . . . . . . . . . . . . . 20 Regen/Repaired (Parts) 254 | . . . . . . . . . . . 254 . . . . . . . . . . . . . . . . . . Core Remaining (%) 63 | 100 . . . 24 . . . 63 . . . . . . 55 . . . 79 . . . . . 58 . . . . Volleys Fired 830 | 5 37 12 . 17 4 25 56 24 19 . 46 65 14 . 27 3 13 17 35 46 54 29 16 35 36 8 20 42 125 Largest 4 | 2 2 2 . 2 4 4 4 4 4 . 4 4 4 . 4 4 4 4 4 4 4 4 4 4 4 4 4 4 4 Hottest 216 | 70 70 110 . 93 213 213 167 138 138 . 216 211 178 . 186 186 202 202 126 126 129 140 140 140 138 136 136 138 140 Shots Fired 2669 | 10 72 23 . 30 16 85 221 83 70 . 152 124 39 . 84 12 40 60 115 152 156 116 64 136 105 32 76 160 436 Gun 2504 | 10 72 19 . 13 4 45 208 83 68 . 152 89 39 . 81 12 40 56 111 142 136 116 64 136 104 32 76 160 436 Cannon 86 | . . 4 . 17 12 40 13 . . . . . . . . . . . . . . . . . . . . . . Launcher 4 | . . . . . . . . . . . . . . . . . . 3 . . . . . . 1 . . . . Special 75 | . . . . . . . . . 2 . . 35 . . 3 . . 1 4 10 20 . . . . . . . . Kinetic 2143 | 5 37 8 . 13 4 34 155 61 51 . 92 32 23 . 38 6 19 52 111 142 136 116 64 136 104 32 76 160 436 Thermal 446 | 5 35 15 . 17 12 51 30 22 17 . 60 92 16 . 43 6 21 4 . . . . . . . . . . . Explosive 4 | . . . . . . . . . . . . . . . . . . 3 . . . . . . 1 . . . . Electromagnetic 36 | . . . . . . . 36 . . . . . . . . . . . . . . . . . . . . . . Robot Hit Streak 41 | 8 10 7 . 7 4 19 14 10 11 . 13 8 8 . 10 4 4 8 16 14 31 36 14 15 14 12 41 24 28 Robot Miss Streak 8 | 1 3 3 . 3 2 2 4 3 5 . 6 5 6 . 3 7 8 4 4 8 4 1 4 3 2 1 2 2 5 Penetration Max 2 | . . . . . . . 1 . . . . . . . . . . 1 1 1 1 1 1 1 1 1 1 2 1 Secondary Targets 55 | . . 2 . . . . 1 2 1 . 1 1 . . 2 . 1 . 7 3 2 9 . 5 . 2 2 4 10 Max Gunslinging Chain 2 | . . 1 . . . . 1 1 1 . 1 1 . . 1 . 1 . 2 1 1 1 . 1 . 1 1 1 2 Shots Hit Robots 1789 | 8 37 13 . 17 8 58 120 47 42 . 94 78 22 . 61 7 22 44 80 95 128 100 41 87 56 25 66 111 322 Core Hits 787 | 2 20 7 . 6 3 23 57 23 16 . 32 35 9 . 21 4 16 36 38 44 45 49 21 50 27 17 17 53 116 Critical Kills 57 | . . . . . . . . . . . 1 . . . . . . 2 2 1 4 6 4 9 8 2 3 9 6 Critical Parts Destroyed 71 | . . . . . . . 2 . . . 1 . . . . . . . 1 2 8 10 4 6 4 2 2 10 19 Critical Strikes 157 | . 2 . . . . . 2 1 1 . 6 3 1 . 5 . 1 2 3 3 12 16 9 16 12 4 12 19 27 Burn 16 | . 2 . . . . . . 1 1 . 4 1 1 . 5 . 1 . . . . . . . . . . . . Destroy 137 | . . . . . . . 2 . . . . . . . . . . 2 3 3 12 16 9 16 12 4 12 19 27 Smash 2 | . . . . . . . . . . . 2 . . . . . . . . . . . . . . . . . . Sever 2 | . . . . . . . . . . . . 2 . . . . . . . . . . . . . . . . . Melee Attacks 82 | . . . . . . 15 . . . . 21 . . . . . . 5 . 25 . . . . 2 . . . 14 Impact 82 | . . . . . . 15 . . . . 21 . . . . . . 5 . 25 . . . . 2 . . . 14 Slashing . | . . . . . . . . . . . . . . . . . . . . . . . . . . . . . . Piercing . | . . . . . . . . . . . . . . . . . . . . . . . . . . . . . . Sneak Attacks 5 | . . . . . . . . . . . 5 . . . . . . . . . . . . . . . . . . Combat Hostiles . | . . . . . . . . . . . . . . . . . . . . . . . . . . . . . . Follow-up Attacks . | . . . . . . . . . . . . . . . . . . . . . . . . . . . . . . Damage Inflicted 43795 | 112 538 218 . 415 168 1038 2381 801 792 . 3034 1374 461 . 1163 122 345 2225 1789 2300 3170 2375 1166 2498 1485 948 1798 2940 8139 Guns 39573 | 106 521 120 . 183 45 600 2073 801 792 . 2102 1054 461 . 1163 122 345 948 1789 2147 3162 2375 1166 2479 1485 948 1798 2869 7919 Cannons 918 | . . 69 . 163 123 438 125 . . . . . . . . . . . . . . . . . . . . . . Explosions 2002 | . . . . . . . 118 . . . 493 . . . . . . 1221 . . . . . . . . . . 170 Melee 535 | . . . . . . . . . . . 439 . . . . . . . . 96 . . . . . . . . . Ramming 447 | 6 17 29 . 69 . . 65 . . . . . . . . . . 56 . 57 8 . . 19 . . . 71 50 Kinetic 35666 | 55 231 55 . 183 45 514 1520 615 624 . 1233 481 316 . 532 63 185 877 1789 2147 3162 2375 1166 2479 1485 948 1798 2869 7919 Thermal 5362 | 51 290 134 . 163 123 524 402 186 168 . 1362 893 145 . 631 59 160 71 . . . . . . . . . . . Explosive 1391 | . . . . . . . . . . . . . . . . . . 1221 . . . . . . . . . . 170 Electromagnetic 394 | . . . . . . . 394 . . . . . . . . . . . . . . . . . . . . . . Impact 535 | . . . . . . . . . . . 439 . . . . . . . . 96 . . . . . . . . . Slashing . | . . . . . . . . . . . . . . . . . . . . . . . . . . . . . . Piercing . | . . . . . . . . . . . . . . . . . . . . . . . . . . . . . . Highest Corruption 16 | . 1 1 1 1 . . . . 1 1 5 6 6 1 1 1 1 4 4 1 1 1 1 4 4 . . 3 16 Average Corruption 2 | . 1 1 1 1 . . . . 1 1 2 5 5 1 1 1 1 1 4 1 1 1 1 2 4 . . 1 6 Corruption Purged 5 | . . . . . . . . . . . . . 5 . . . . . . . . . . . . . . . . Corruption Blocked . | . . . . . . . . . . . . . . . . . . . . . . . . . . . . . . Effects 366 | . 5 8 2 5 . . . . 4 . 35 66 36 2 13 1 3 12 24 8 10 3 . 23 26 . . 15 65 Message Errors 100 | . 2 . . . . . . . 2 . 11 16 11 1 3 . . . 8 5 3 1 . 7 11 . . 6 13 Matter Fused 73 | . 1 4 2 2 . . . . . . 6 16 7 . 1 . 2 8 4 1 1 1 . 3 5 . . 1 8 Heat Flow Errors 35 | . . . . 1 . . . . . . 2 5 5 . 3 . . 1 2 . 1 . . 2 . . . 1 12 Energy Discharges 46 | . . 2 . 1 . . . . 2 . 3 12 2 1 3 . 1 1 1 1 . . . 4 3 . . 3 6 Parts Rejected 4 | . . 1 . 1 . . . . . . 1 . . . . . . . . . . . . . . . . . 1 Data Loss (minor) 54 | . 1 1 . . . . . . . . 9 7 9 . 2 1 . 1 4 . 4 . . 4 2 . . 2 7 Data Loss (major) 14 | . . . . . . . . . . . 1 3 . . . . . . 1 1 . . . . 1 . . 2 5 Misfires 22 | . 1 . . . . . . . . . 1 3 1 . . . . . 3 . 1 . . 3 4 . . . 5 Alerts 7 | . . . . . . . . . . . . 3 . . 1 . . . . . . 1 . . . . . . 2 Weapon Failures 11 | . . . . . . . . . . . 1 1 1 . . . . 1 1 . . . . . . . . . 6 Overload Shots . | . . . . . . . . . . . . . . . . . . . . . . . . . . . . . . Overflow Damage 435 | . . . . . . 1 . . . . 326 23 . . . . . 21 . 39 . . . . . . . . 25 Projectiles 24 | . . . . . . 1 . . . . . 23 . . . . . . . . . . . . . . . . . Explosions 140 | . . . . . . . . . . . 119 . . . . . . 21 . . . . . . . . . . . Melee 271 | . . . . . . . . . . . 207 . . . . . . . . 39 . . . . . . . . 25 Knockbacks 5 | . . . . . . . . . . . 2 . . . . . . 1 . 1 . . . . . . . 1 . Impact 5 | . . . . . . . . . . . 2 . . . . . . 1 . 1 . . . . . . . 1 . Kinetic . | . . . . . . . . . . . . . . . . . . . . . . . . . . . . . . Secondary . | . . . . . . . . . . . . . . . . . . . . . . . . . . . . . . Self-Inflicted Damage 343 | . . . . . . . 4 . . . 339 . . . . . . . . . . . . . . . . . . Shots 4 | . . . . . . . . . . . 4 . . . . . . . . . . . . . . . . . . Rammed 55 | 2 2 5 . 12 . . 9 . . . . . . . . . . 3 . 8 2 . . 4 . . . 7 1 Targets Rammed 66 | 2 4 7 . 13 . . 10 . . . . . . . . . . 5 . 8 2 . . 4 . . . 9 2 Kicked . | . . . . . . . . . . . . . . . . . . . . . . . . . . . . . . Crushed 11 | . 2 2 . 1 . . 1 . . . . . . . . . . 2 . . . . . . . . . 2 1 Highest Temperature 556 | 27 129 164 . 267 334 334 220 195 191 . 556 440 241 . 242 138 114 203 298 65 353 58 265 530 77 12 . 127 391 Average Temperature 95 | 12 31 57 . 92 152 134 56 97 88 . 136 106 71 . 42 88 43 64 92 12 51 13 139 178 25 12 . 63 178 Received Heat Transfer 2906 | . 54 . . 153 90 333 189 108 . . 132 192 30 . 78 . 18 . 225 105 182 159 9 165 153 99 . 306 126 Effects 19 | . . . . . . 5 . . . . 2 3 . . . . . . . . . . . 3 . . . . 6 Shutdowns 2 | . . . . . . . . . . . . . . . . . . . . . . . . 1 . . . . 1 Energy Bleed 6 | . . . . . . 4 . . . . 1 1 . . . . . . . . . . . . . . . . . Interference 6 | . . . . . . . . . . . . 1 . . . . . . . . . . . . . . . . 5 Matter Decay 1 | . . . . . . . . . . . . 1 . . . . . . . . . . . . . . . . . Short Circuit 3 | . . . . . . 1 . . . . 1 . . . . . . . . . . . . 1 . . . . . Damage (major) 1 | . . . . . . . . . . . . . . . . . . . . . . . . 1 . . . . . Siege Activations 35 | . . . . . . . . . . . . . . . . . . . 3 4 6 5 . 2 2 2 . 2 9 Total Turns 763 | . . . . . . . . . . . . . . . . . . . 100 110 59 70 . 34 45 26 . 79 240 Longest Duration 73 | . . . . . . . . . . . . . . . . . . . 51 73 22 20 . 24 31 16 . 69 61 Robots Corrupted . | . . . . . . . . . . . . . . . . . . . . . . . . . . . . . . Combat Hostiles . | . . . . . . . . . . . . . . . . . . . . . . . . . . . . . . Parts Fried 10 | . . . . . . . . . . . 3 . . . . . . . . 4 3 . . . . . . . . Impact Corruptions 12 | . . . . . . . . . . . 8 . . . . . . . . 3 . . . . . . . . 1 Robots Melted . | . . . . . . . . . . . . . . . . . . . . . . . . . . . . . . Combat Hostiles . | . . . . . . . . . . . . . . . . . . . . . . . . . . . . . . Parts Melted 13 | . 1 . . . . 1 . 1 . . 4 1 . . . . . 2 1 . 1 . . . . . . . 1 Heat Transferred 11619 | 148 999 333 . 333 259 1147 729 481 407 . 2002 2146 333 . 1580 137 461 124 . . . . . . . . . . . Parts Sabotaged 3 | . . . . . . . . . . . . . . . . . . . . . . . . . . . . . 3 Parts Stolen . | . . . . . . . . . . . . . . . . . . . . . . . . . . . . . . Parts Stripped . | . . . . . . . . . . . . . . . . . . . . . . . . . . . . . . Power Chain Reactions 1 | . . . . . . . 1 . . . . . . . . . . . . . . . . . . . . . . Missiles Intercepted . | . . . . . . . . . . . . . . . . . . . . . . . . . . . . . . Alert | -11 -10 -10 -10 -9 -8 -8 -8 -8 -7 -7 -7 -7 -7 -7 -6 -6 -6 -6 -6 -5 -5 -5 -5 -5 -5 -4 -4 -4 -4 ------- Run | Scr Mat Min Exi Min Mat Gar Mat Gar Fac Was Fac Low Low Dat Pro Fac Gar Fac Gar Fac Ext Cet Arc Hub Gar Fac Was Fac Arm Peak Influence 788 | 10 159 104 . 136 215 445 490 539 413 99 401 . . . . 230 514 407 620 418 579 599 408 461 646 519 183 327 788 Initial 338 | . 6 11 . . 55 117 216 221 282 99 69 . . . . 47 161 269 257 325 111 309 194 72 252 338 181 128 159 Average 226 | 3 61 34 . 43 72 327 310 360 303 99 89 . . . . 133 341 238 490 188 194 431 364 149 479 422 181 149 392 Maximum Alert Level 3 | . . . . . 1 2 2 2 2 . 2 . . . . 1 2 2 2 2 2 2 2 2 2 2 . 1 3 Low Security (%) 52 | 100 100 100 . 100 96 29 7 . . 100 87 . . . . 61 21 46 . 67 65 . 4 71 . . 100 78 13 Level 1 29 | . . . . . 3 39 75 54 92 . 12 . . . . 38 33 50 29 30 24 32 32 25 29 40 . 21 41 Level 2 17 | . . . . . . 31 16 45 7 . . . . . . . 45 2 70 2 9 67 62 2 70 59 . . 40 Level 3 . | . . . . . . . . . . . . . . . . . . . . . . . . . . . . . 4 Level 4 . | . . . . . . . . . . . . . . . . . . . . . . . . . . . . . . Level 5 . | . . . . . . . . . . . . . . . . . . . . . . . . . . . . . . High Security . | . . . . . . . . . . . . . . . . . . . . . . . . . . . . . . Max Security . | . . . . . . . . . . . . . . . . . . . . . . . . . . . . . . Squads Dispatched 70 | . 3 . . 1 2 . 4 . 4 . 10 . . . 1 1 . 7 . 8 1 1 . 10 . 2 . 3 12 Investigation 23 | . 1 . . 1 . . 1 . 2 . 5 . . . . . . . . 4 1 1 . 3 . 1 . . 3 Extermination 20 | . . . . . . . . . 1 . 4 . . . . . . 3 . 2 . . . 3 . 1 . 1 5 Reinforcement 23 | . 2 . . . 1 . 3 . 1 . 1 . . . . 1 . 2 . 2 . . . 4 . . . 2 4 Assault 1 | . . . . . . . . . . . . . . . 1 . . . . . . . . . . . . . . Garrison 3 | . . . . . 1 . . . . . . . . . . . . 2 . . . . . . . . . . . Intercept . | . . . . . . . . . . . . . . . . . . . . . . . . . . . . . . Searches Triggered . | . . . . . . . . . . . . . . . . . . . . . . . . . . . . . . Data Miner Redirects 5 | . . . . . . . . . . . . . . . . . . . . 2 . 1 . 1 . . . . 1 Construction Impeded 1 | . . . . . . . 1 . . . . . . . . . . . . . . . . . . . . . . Haulers Reinforced 5 | . . . . . . . . . 1 . . . . . . . . 1 . 1 . . . 1 . . . 1 . Active Scanning Responses . | . . . . . . . . . . . . . . . . . . . . . . . . . . . . . . Cargo Convoy Interrupts 1 | . . . . . . . . . . . . . . . . . . 1 . . . . . . . . . . . Alert ID Control Effect 2 | . . . . . . . . . . . . . . . . . . . 1 1 . . . . . . . . . Stealth | -11 -10 -10 -10 -9 -8 -8 -8 -8 -7 -7 -7 -7 -7 -7 -6 -6 -6 -6 -6 -5 -5 -5 -5 -5 -5 -4 -4 -4 -4 --------- Run | Scr Mat Min Exi Min Mat Gar Mat Gar Fac Was Fac Low Low Dat Pro Fac Gar Fac Gar Fac Ext Cet Arc Hub Gar Fac Was Fac Arm Distress Signals 14 | . 2 . . . 1 . 3 . 1 . . . . . . . . . . . . 2 . 2 . . . . 3 Communications Jammed 158 | . . . . . . . . . 1 . 10 . . . . . . 4 . 1 32 . . . . . . 17 93 Distress Signals 150 | . . . . . . . . . . . 10 . . . . . . 4 . . 32 . . . . . . 17 87 Times Spotted 499 | . 19 5 . 11 13 8 35 12 13 . 20 10 14 . 23 3 15 26 16 32 34 24 11 27 13 12 6 23 74 Peak Tracking Total 10 | . 3 3 . 3 8 5 8 4 3 . 3 3 4 . 4 2 3 10 5 4 4 5 1 6 5 5 2 5 7 Tactical Retreats 18 | . . . . . . 1 2 1 1 . 1 1 . . 2 . 1 . . . . . . 1 1 1 2 . 3 Traps | -11 -10 -10 -10 -9 -8 -8 -8 -8 -7 -7 -7 -7 -7 -7 -6 -6 -6 -6 -6 -5 -5 -5 -5 -5 -5 -4 -4 -4 -4 ------- Run | Scr Mat Min Exi Min Mat Gar Mat Gar Fac Was Fac Low Low Dat Pro Fac Gar Fac Gar Fac Ext Cet Arc Hub Gar Fac Was Fac Arm Traps Triggered 24 | . 1 . . . . . . 3 2 . 4 . . . . 1 . . 3 3 . . . . 2 3 . 1 1 Indirectly . | . . . . . . . . . . . . . . . . . . . . . . . . . . . . . . Trap Hack Attempts . | . . . . . . . . . . . . . . . . . . . . . . . . . . . . . . Triggered . | . . . . . . . . . . . . . . . . . . . . . . . . . . . . . . Disarmed . | . . . . . . . . . . . . . . . . . . . . . . . . . . . . . . Reprogrammed . | . . . . . . . . . . . . . . . . . . . . . . . . . . . . . . Reused . | . . . . . . . . . . . . . . . . . . . . . . . . . . . . . . Traps Extracted . | . . . . . . . . . . . . . . . . . . . . . . . . . . . . . . Installed . | . . . . . . . . . . . . . . . . . . . . . . . . . . . . . . Triggered . | . . . . . . . . . . . . . . . . . . . . . . . . . . . . . . Exploded 1 | . . . . . . . 1 . . . . . . . . . . . . . . . . . . . . . . Machines | -11 -10 -10 -10 -9 -8 -8 -8 -8 -7 -7 -7 -7 -7 -7 -6 -6 -6 -6 -6 -5 -5 -5 -5 -5 -5 -4 -4 -4 -4 ---------- Run | Scr Mat Min Exi Min Mat Gar Mat Gar Fac Was Fac Low Low Dat Pro Fac Gar Fac Gar Fac Ext Cet Arc Hub Gar Fac Was Fac Arm Machines Disabled 68 | . . . . . . . 5 1 . . 20 . . . . 4 2 1 3 3 1 2 6 5 3 . . 3 9 Max in Single Turn 13 | . . . . . . . 1 1 . . 13 . . . . . 1 1 1 2 . 1 2 2 2 . . 1 1 Garrison Access 6 | . . . . . . . . . . . 3 . . . . . . . . 2 . . . . . . . 1 . Garrison Relay 5 | . . . . . . . . 1 . . . . . . . . 1 . 1 . . . . . 2 . . . . Network Hub 3 | . . . . . . . . . . . . . . . . . . . . . . . . 3 . . . . . Machines Sabotaged 2 | . . . . . . . . . . . . . . . . . . . . . . . . 2 . . . . . Garrisons Compromised . | . . . . . . . . . . . . . . . . . . . . . . . . . . . . . . Overloaded Fab Kills . | . . . . . . . . . . . . . . . . . . . . . . . . . . . . . . Hacking | -11 -10 -10 -10 -9 -8 -8 -8 -8 -7 -7 -7 -7 -7 -7 -6 -6 -6 -6 -6 -5 -5 -5 -5 -5 -5 -4 -4 -4 -4 --------- Run | Scr Mat Min Exi Min Mat Gar Mat Gar Fac Was Fac Low Low Dat Pro Fac Gar Fac Gar Fac Ext Cet Arc Hub Gar Fac Was Fac Arm Machines Accessed 105 | . 6 1 2 1 2 . 10 . 3 . 22 2 . 3 . 2 . 10 . 13 7 3 . 6 . 1 . 3 8 Terminals 58 | . 5 1 . 1 1 . 8 . . . 9 1 . . . . . 6 . 6 7 3 . 5 . . . 2 3 Fabricators 9 | . . . . . . . . . . . 2 . . . . . . 1 . 1 . . . . . 1 . . 4 Repair Stations 9 | . . . . . . . . . 1 . 4 . . . . . . 1 . 2 . . . . . . . . 1 Recycling Units 5 | . 1 . . . . . . . 1 . 2 . . . . 1 . . . . . . . . . . . . . Scanalyzers 7 | . . . . . . . 1 . 1 . 2 . . . . . . 1 . 2 . . . . . . . . . Garrison Access 11 | . . . . . 1 . 1 . . . 3 . . . . 1 . 1 . 2 . . . 1 . . . 1 . Total Hacks 340 | . 17 5 2 4 2 . 29 . 12 . 66 2 . 23 . 4 . 39 . 38 24 7 . 12 . 6 . 16 32 Successful 191 | . 8 3 2 2 2 . 17 . 6 . 35 2 . 23 . 4 . 22 . 21 11 2 . 8 . 4 . 5 14 Failed 148 | . 9 2 . 2 . . 11 . 6 . 31 . . . . . . 17 . 17 13 5 . 4 . 2 . 11 18 Catastrophic 24 | . 1 . . . . . 1 . . . 5 . . . . . . 1 . 2 5 1 . . . . . 2 6 Database Lockouts 1 | . . . . . . . 1 . . . . . . . . . . . . . . . . . . . . . . Manual 108 | . 6 5 1 4 1 . 18 . 1 . 19 . . . . 2 . 13 . 9 2 . . 7 . 1 . 7 12 Terminals 200 | . 13 5 . 4 1 . 25 . . . 34 1 . . . . . 27 . 19 24 7 . 11 . . . 15 14 Fabricators 32 | . . . . . . . . . . . 6 . . . . . . 4 . 2 . . . . . 6 . . 14 Repair Stations 27 | . . . . . . . . . 4 . 11 . . . . . . 3 . 5 . . . . . . . . 4 Recycling Units 16 | . 4 . . . . . . . 5 . 4 . . . . 3 . . . . . . . . . . . . . Scanalyzers 28 | . . . . . . . 3 . 3 . 8 . . . . . . 4 . 10 . . . . . . . . . Garrison Access 11 | . . . . . 1 . 1 . . . 3 . . . . 1 . 1 . 2 . . . 1 . . . 1 . Terminal Hacks 96 | . 6 3 2 2 . . 11 . . . 12 2 . 23 . . . 10 . 3 10 2 . 3 . . . 3 4 Record 6 | . . . 1 . . . . . . . . 1 . 3 . . . . . . . 1 . . . . . . . Part Schematic 22 | . 1 . . . . . . . . . 3 . . 11 . . . 2 . . 4 . . 1 . . . . . Robot Schematic 8 | . 1 1 . . . . . . . . . . . 6 . . . . . . . . . . . . . . . Robot Analysis 7 | . 1 1 . 2 . . 2 . . . . . . . . . . . . . 1 . . . . . . . . Prototype ID Bank 8 | . 2 1 . . . . 1 . . . 1 . . 3 . . . . . . . . . . . . . . . Open Door 2 | . . . . . . . . . . . . 1 . . . . . . . . . 1 . . . . . . . Branch Access Points 4 | . . . . . . . 1 . . . 1 . . . . . . 1 . . . . . . . . . 1 . Emergency Access Points 2 | . . . . . . . 1 . . . . . . . . . . . . . . . . . . . . . 1 Machine Index 1 | . . . . . . . . . . . . . . . . . . . . . . . . 1 . . . . . Terminal Index 6 | . . . . . . . . . . . 1 . . . . . . 1 . 1 1 . . 1 . . . . 1 Scanalyzer Index 2 | . . . . . . . . . . . 1 . . . . . . . . 1 . . . . . . . . . Garrison Index 1 | . . . . . . . 1 . . . . . . . . . . . . . . . . . . . . . . Unreport Threat 3 | . . . . . . . 2 . . . . . . . . . . . . 1 . . . . . . . . . Locate Traps 12 | . . . . . . . 2 . . . 3 . . . . . . 3 . . 3 . . . . . . . 1 Maintenance Status 3 | . . . . . . . 1 . . . . . . . . . . 1 . . . . . . . . . 1 . Surveillance Status 1 | . . . . . . . . . . . . . . . . . . . . . 1 . . . . . . . . Patrol Status 1 | . . . . . . . . . . . . . . . . . . 1 . . . . . . . . . . . Recall Reinforcements 2 | . 1 . . . . . . . . . . . . . . . . . . . . . . . . . . . 1 Hauler Manifests 2 | . . . . . . . . . . . . . . . . . . 1 . . . . . . . . . 1 . Zone Layout 2 | . . . . . . . . . . . 2 . . . . . . . . . . . . . . . . . . EX-Prototype ID Bank 1 | . . . 1 . . . . . . . . . . . . . . . . . . . . . . . . . . Fabricator Hacks 12 | . . . . . . . . . . . 2 . . . . . . 1 . 1 . . . . . 3 . . 5 Network Status 4 | . . . . . . . . . . . . . . . . . . 1 . 1 . . . . . 1 . . 1 Load Schematic 4 | . . . . . . . . . . . 1 . . . . . . . . . . . . . . 1 . . 2 Build 4 | . . . . . . . . . . . 1 . . . . . . . . . . . . . . 1 . . 2 Repair Station Hacks 12 | . . . . . . . . . 2 . 7 . . . . . . 1 . 1 . . . . . . . . 1 Scan Component 8 | . . . . . . . . . 1 . 4 . . . . . . 1 . 1 . . . . . . . . 1 Repair 4 | . . . . . . . . . 1 . 3 . . . . . . . . . . . . . . . . . . Recycling Unit Hacks 7 | . 1 . . . . . . . 2 . 3 . . . . 1 . . . . . . . . . . . . . Report Inventory 3 | . . . . . . . . . 1 . 2 . . . . . . . . . . . . . . . . . . Retrieve Matter 1 | . . . . . . . . . . . 1 . . . . . . . . . . . . . . . . . . Retrieve Components 3 | . 1 . . . . . . . 1 . . . . . . 1 . . . . . . . . . . . . . Scanalyzer 20 | . . . . . . . 2 . 2 . 4 . . . . . . 4 . 8 . . . . . . . . . Insert Component 11 | . . . . . . . 1 . 1 . 3 . . . . . . 2 . 4 . . . . . . . . . Analyze 9 | . . . . . . . 1 . 1 . 1 . . . . . . 2 . 4 . . . . . . . . . Garrison Access Hacks 11 | . . . . . 1 . 1 . . . 3 . . . . 1 . 1 . 2 . . . 1 . . . 1 . Unlock Access 5 | . . . . . 1 . 1 . . . . . . . . 1 . 1 . . . . . 1 . . . . . Seal Access 6 | . . . . . . . . . . . 3 . . . . . . . . 2 . . . . . . . 1 . Unauthorized Hacks 33 | . 1 . . . 1 . 3 . . . 4 . . . . 2 . 5 . 6 1 . . 4 . 1 . 1 4 Terminals 21 | . . . . . 1 . 2 . . . 2 . . . . . . 4 . 4 1 . . 4 . . . 1 2 Track 2 | . . . . . . . . . . . . . . . . . . . . 1 . . . . . . . . 1 Assimilate 2 | . . . . . 1 . . . . . . . . . . . . . . . . . . 1 . . . . . Botnet 14 | . . . . . . . 2 . . . 2 . . . . . . 3 . 3 1 . . 1 . . . 1 1 Operators 1 | . . . . . . . . . . . . . . . . . . 1 . . . . . . . . . . . Sabotage 2 | . . . . . . . . . . . . . . . . . . . . . . . . 2 . . . . . Fabricators 5 | . . . . . . . . . . . . . . . . . . 1 . 1 . . . . . 1 . . 2 Prioritize 1 | . . . . . . . . . . . . . . . . . . . . . . . . . . . . . 1 Haulers 2 | . . . . . . . . . . . . . . . . . . 1 . . . . . . . 1 . . . Recompile 2 | . . . . . . . . . . . . . . . . . . . . 1 . . . . . . . . 1 Repair Stations . | . . . . . . . . . . . . . . . . . . . . . . . . . . . . . . Recycling Units 4 | . 1 . . . . . . . . . 1 . . . . 2 . . . . . . . . . . . . . Reject 1 | . . . . . . . . . . . . . . . . 1 . . . . . . . . . . . . . Recyclers 2 | . . . . . . . . . . . 1 . . . . 1 . . . . . . . . . . . . . Tunnel 1 | . 1 . . . . . . . . . . . . . . . . . . . . . . . . . . . . Scanalyzers 3 | . . . . . . . 1 . . . 1 . . . . . . . . 1 . . . . . . . . . Extract 3 | . . . . . . . 1 . . . 1 . . . . . . . . 1 . . . . . . . . . Garrison Access . | . . . . . . . . . . . . . . . . . . . . . . . . . . . . . . Data Cores Recovered 2 | . . . . . . . 1 . . . . . . . . . . 1 . . . . . . . . . . . Used 1 | . . . . . . . . . . . . . . . . . . 1 . . . . . . . . . . . Hacking Detections 78 | . 5 1 . 1 . . 9 . 3 . 16 . . . . 1 . 9 . 11 7 2 . 3 . 1 . 2 7 Full Trace Events 14 | . . . . 1 . . . . 2 . 4 . . . . . . . . 2 1 1 . . . 1 . . 2 Feedback Events 1 | . . . . 1 . . . . . . . . . . . . . . . . . . . . . . . . . Corruption 1 | . . . . 1 . . . . . . . . . . . . . . . . . . . . . . . . . Feedback Blocked . | . . . . . . . . . . . . . . . . . . . . . . . . . . . . . . Robot Schematics Acquired 8 | . 1 1 . . . . . . . . . . . 6 . . . . . . . . . . . . . . . Robots Built . | . . . . . . . . . . . . . . . . . . . . . . . . . . . . . . Authchips . | . . . . . . . . . . . . . . . . . . . . . . . . . . . . . . Time . | . . . . . . . . . . . . . . . . . . . . . . . . . . . . . . Total Robot Build Rating . | . . . . . . . . . . . . . . . . . . . . . . . . . . . . . . Part Schematics Acquired 39 | . 1 . . . . . 2 . 1 . 5 . . 11 . . . 4 . 10 4 . . 1 . . . . . Parts Built 3 | . . . . . . . . . . . 2 . . . . . . . . . . . . . . . . . 1 Authchips 1 | . . . . . . . . . . . . . . . . . . . . . . . . . . . . . 1 Time 404 | . . . . . . . . . . . 106 . . . . . . . . . . . . . . 64 . . 234 Total Part Build Rating 18 | . . . . . . . . . . . 12 . . . . . . . . . . . . . . . . . 6 Parts Repaired 2 | . . . . . . . . . . . 2 . . . . . . . . . . . . . . . . . . Time 198 | . . . . . . . . . 38 . 160 . . . . . . . . . . . . . . . . . . Parts Recycled . | . . . . . . . . . . . . . . . . . . . . . . . . . . . . . . Recycled Matter . | . . . . . . . . . . . . . . . . . . . . . . . . . . . . . . Retrieved Matter 129 | . . . . . . . . . . . 129 . . . . . . . . . . . . . . . . . . Retrieved Components 17 | . 10 . . . . . . . 7 . . . . . . . . . . . . . . . . . . . . Parts Scanalyzed 9 | . . . . . . . 1 . 1 . 1 . . . . . . 2 . 4 . . . . . . . . . Part Schematics Acquired 9 | . . . . . . . 1 . 1 . 1 . . . . . . 2 . 4 . . . . . . . . . Parts Damaged . | . . . . . . . . . . . . . . . . . . . . . . . . . . . . . . Bothacking | -11 -10 -10 -10 -9 -8 -8 -8 -8 -7 -7 -7 -7 -7 -7 -6 -6 -6 -6 -6 -5 -5 -5 -5 -5 -5 -4 -4 -4 -4 ------------ Run | Scr Mat Min Exi Min Mat Gar Mat Gar Fac Was Fac Low Low Dat Pro Fac Gar Fac Gar Fac Ext Cet Arc Hub Gar Fac Was Fac Arm Used RIF Installer 5 | . . . . . . 1 . 1 . . . . . . . . 1 . 1 . . . . . 1 . . . . Hotswap 1 | . . . . . . . . . . . . . . . . . . . . . . . . . 1 . . . . Threat Obfuscator 1 | . . . . . . . . 1 . . . . . . . . . . . . . . . . . . . . . Watcher Feeds 1 | . . . . . . . . . . . . . . . . . . . 1 . . . . . . . . . . Alert ID Control 1 | . . . . . . . . . . . . . . . . . 1 . . . . . . . . . . . . Robots Hacked 9 | . . . . . . . . . 2 . . . . . . . . . 2 3 2 . . . . . . . . Non-combat 2 | . . . . . . . . . 2 . . . . . . . . . . . . . . . . . . . . Combat 7 | . . . . . . . . . . . . . . . . . . . 2 3 2 . . . . . . . . Robot Hacks Applied 10 | . . . . . . . . . 2 . . . . . . . . . 2 4 2 . . . . . . . . parse_system 2 | . . . . . . . . . . . . . . . . . . . . . 2 . . . . . . . . find_chute 1 | . . . . . . . . . 1 . . . . . . . . . . . . . . . . . . . . find_recycling 1 | . . . . . . . . . 1 . . . . . . . . . . . . . . . . . . . . find_garrison 1 | . . . . . . . . . . . . . . . . . . . . 1 . . . . . . . . . overwrite_iff 1 | . . . . . . . . . . . . . . . . . . . . 1 . . . . . . . . . formatsys_high 4 | . . . . . . . . . . . . . . . . . . . 2 2 . . . . . . . . . Relay Couplers Released 25 | . . . . . . . . 4 . . 1 . . . . . 5 . 5 . . . . . 10 . . . . Machine Destruction 25 | . . . . . . . . 4 . . 1 . . . . . 5 . 5 . . . . . 10 . . . . Attached 8 | . . . . . . . . . . . . . . . . . . . 3 3 . . . . 2 . . . . Fabnet Peak Effective % . | . . . . . . . . . . . . . . . . . . . . . . . . . . . . . . Robots Rewired 23 | . . . . . . . . . . . . . . . 2 . . . . . 18 . . . . . . . 3 Allies Hacked 3 | . . . . . . . . . . . . . . . . . . 1 . . . . . . . . . . 2 Hacks Repelled . | . . . . . . . . . . . . . . . . . . . . . . . . . . . . . . Allies | -11 -10 -10 -10 -9 -8 -8 -8 -8 -7 -7 -7 -7 -7 -7 -6 -6 -6 -6 -6 -5 -5 -5 -5 -5 -5 -4 -4 -4 -4 -------- Run | Scr Mat Min Exi Min Mat Gar Mat Gar Fac Was Fac Low Low Dat Pro Fac Gar Fac Gar Fac Ext Cet Arc Hub Gar Fac Was Fac Arm Total Allies 49 | . . . . 5 . . . . . . . 1 . . 3 . . . 2 3 21 . . 1 . . . . 13 Largest Group 13 | . . . . 4 2 . . . . . . 1 1 1 4 3 2 2 2 1 13 2 . 1 . . . . 10 Highest-Rated Group 510 | . . . . 81 47 . . . . . . 99 99 99 259 163 131 130 58 49 510 67 . 10 . . . . 481 Highest-Rated Ally 159 | . . . . 31 31 . . . . . . 99 99 99 99 99 99 98 29 49 159 39 . 10 . . . . 65 Total Orders . | . . . . . . . . . . . . . . . . . . . . . . . . . . . . . . Ally Attacks 396 | . . . . 35 17 . . . . . . . 13 . 32 5 15 24 14 14 184 15 . . . . . . 28 Total Damage 10583 | . . . . 417 291 . . . . . . . 833 . 1677 203 730 719 175 243 4171 269 . . . . . . 855 Kills 107 | . . . . 6 5 . . . . . . . 12 . 16 2 10 11 1 2 31 3 . . . . . . 8 Allies Corrupted 4 | . . . . . . . . . . . . . . . . . . 2 . . . . . . . . . . 2 Allies Melted 1 | . . . . . . . . . . . . . . . . . . . . . 1 . . . . . . . . Intel | -11 -10 -10 -10 -9 -8 -8 -8 -8 -7 -7 -7 -7 -7 -7 -6 -6 -6 -6 -6 -5 -5 -5 -5 -5 -5 -4 -4 -4 -4 ------- Run | Scr Mat Min Exi Min Mat Gar Mat Gar Fac Was Fac Low Low Dat Pro Fac Gar Fac Gar Fac Ext Cet Arc Hub Gar Fac Was Fac Arm Robot Analysis Total 7 | . 1 1 . 2 . . 2 . . . . . . . . . . . . . 1 . . . . . . . . Derelict Logs Recovered 8 | . . 1 . 1 . . . . . . . 1 2 . 3 . . . . . . . . . . . . . . Drone Launches . | . . . . . . . . . . . . . . . . . . . . . . . . . . . . . . Drone Recoveries . | . . . . . . . . . . . . . . . . . . . . . . . . . . . . . . Exploration | -11 -10 -10 -10 -9 -8 -8 -8 -8 -7 -7 -7 -7 -7 -7 -6 -6 -6 -6 -6 -5 -5 -5 -5 -5 -5 -4 -4 -4 -4 ------------- Run | Scr Mat Min Exi Min Mat Gar Mat Gar Fac Was Fac Low Low Dat Pro Fac Gar Fac Gar Fac Ext Cet Arc Hub Gar Fac Was Fac Arm Turns Passed 29959 | 109 889 965 520 1164 196 516 1506 432 538 343 2849 2158 1490 149 1731 355 551 1414 820 2624 1721 574 436 1211 1081 271 233 1105 2008 Spaces Moved 15166 | 51 431 376 302 448 101 219 800 252 324 255 1663 1119 893 89 999 205 309 778 377 1195 822 234 216 600 534 137 99 516 822 Core 5 | 5 . . . . . . . . . . . . . . . . . . . . . . . . . . . . . Treads 12920 | 46 431 376 302 448 101 219 499 3 . . 551 1119 893 89 999 205 309 778 377 1195 822 234 216 600 534 137 99 516 822 Legs . | . . . . . . . . . . . . . . . . . . . . . . . . . . . . . . Wheels 2241 | . . . . . . . 301 249 324 255 1112 . . . . . . . . . . . . . . . . . . Hover . | . . . . . . . . . . . . . . . . . . . . . . . . . . . . . . Flight . | . . . . . . . . . . . . . . . . . . . . . . . . . . . . . . Fastest Speed 50 | 50 160 240 160 240 160 160 130 130 130 130 130 160 160 160 160 160 160 160 160 160 165 165 165 165 165 160 160 160 152 Average Speed 161 | 149 174 240 171 240 162 160 148 132 130 130 140 161 160 160 160 160 160 160 160 162 165 165 165 165 165 160 160 160 152 Slowest Speed 400 | 160 240 240 240 240 240 160 160 320 130 130 400 165 160 160 160 160 160 160 160 240 245 165 165 165 165 160 160 160 160 Overloaded Moves . | . . . . . . . . . . . . . . . . . . . . . . . . . . . . . . Propulsion Burnouts . | . . . . . . . . . . . . . . . . . . . . . . . . . . . . . . Robots Hopped . | . . . . . . . . . . . . . . . . . . . . . . . . . . . . . . Cave-ins Triggered . | . . . . . . . . . . . . . . . . . . . . . . . . . . . . . . Exploration Rate (%) 54 | 5 58 56 70 86 13 41 72 56 14 96 44 92 95 68 96 5 51 25 44 37 90 80 83 51 54 5 74 13 68 Regions Visited 29 Branch Regions 12 Pre-discovered Areas 7 | . 1 . 1 . . . . . . . . . 2 1 2 . . . . . . . . . . . . . . Known Exits Taken 10 | . . 1 . . 1 . 1 . . . 1 . . . 1 1 . 1 . 1 . . . 1 . . . 1 . Unknown Exits Taken 10 | 1 1 . 1 1 . . . . . . . 1 1 1 . . . . . . 1 1 1 . . . . . . Scrap Searched 12 | . . 1 . 1 . . . . . . . 5 3 . 2 . . . . . . . . . . . . . . Spaces Dug 73 | . . . . . . 3 . . . . 12 . . . . . . 5 . 22 . . . . 1 . . 7 23 Terrain Destroyed 322 | . . . . 1 1 3 8 . . . 63 1 . . 1 1 1 41 5 33 5 8 13 47 4 . 3 31 52 Melee 51 | . . . . . . 3 . . . . 12 . . . . . . 5 . 22 . . . . 1 . . . 8 Projectile 171 | . . . . 1 1 . . . . . 1 1 . . 1 1 1 . 5 10 5 8 13 47 3 . 3 30 40 AOE 94 | . . . . . . . 8 . . . 50 . . . . . . 36 . . . . . . . . . . . Terrain Rammed . | . . . . . . . . . . . . . . . . . . . . . . . . . . . . . . Walls Destroyed . | . . . . . . . . . . . . . . . . . . . . . . . . . . . . . . Machines Disabled . | . . . . . . . . . . . . . . . . . . . . . . . . . . . . . . Actions | -11 -10 -10 -10 -9 -8 -8 -8 -8 -7 -7 -7 -7 -7 -7 -6 -6 -6 -6 -6 -5 -5 -5 -5 -5 -5 -4 -4 -4 -4 --------- Run | Scr Mat Min Exi Min Mat Gar Mat Gar Fac Was Fac Low Low Dat Pro Fac Gar Fac Gar Fac Ext Cet Arc Hub Gar Fac Was Fac Arm Total 18698 | 69 500 406 307 489 123 300 1014 313 412 268 2021 1331 926 96 1072 225 339 895 522 1740 1099 354 257 730 656 170 126 690 1248 Wait 1723 | 3 7 6 . 3 12 27 80 25 58 . 244 118 2 . 27 . 12 58 84 393 65 63 20 77 53 20 2 89 175 Move 15145 | 50 430 375 301 448 101 218 800 251 324 254 1662 1118 892 88 998 205 308 778 376 1194 821 233 215 600 533 137 98 515 822 Hop . | . . . . . . . . . . . . . . . . . . . . . . . . . . . . . . Pick Up 139 | 1 13 2 2 4 1 7 22 2 4 2 8 6 3 . 2 1 2 3 2 9 4 3 2 3 6 2 2 6 15 Fast Attach 106 | 7 . . . 2 . 2 7 . . . 6 1 3 4 5 5 . 8 3 18 3 5 1 2 3 . 1 5 15 Attach 57 | . . 3 2 3 5 2 . 1 3 . 1 2 4 . 1 1 1 . . 5 2 1 . 2 3 2 . 5 8 Detach 9 | . . . 2 . . . . . . . . . 2 . 1 . . . 1 1 . . . . . 1 . . 1 Swap 172 | 1 4 1 . . . 2 7 . 2 6 20 10 3 . 5 3 1 7 15 21 15 6 . 5 12 . . 7 19 Drop 212 | . 5 . . . . 2 32 1 2 6 13 10 3 4 6 7 2 14 6 20 11 14 3 2 7 . 3 12 27 Fire 830 | 5 37 12 . 17 4 25 56 24 19 . 46 65 14 . 27 3 13 17 35 46 54 29 16 35 36 8 20 42 125 Melee 82 | . . . . . . 15 . . . . 21 . . . . . . 5 . 25 . . . . 2 . . . 14 Ram 1 | . . . . . . . 1 . . . . . . . . . . . . . . . . . . . . . . Kick . | . . . . . . . . . . . . . . . . . . . . . . . . . . . . . . Crush 64 | 2 4 7 . 12 . . 9 . . . . . . . . . . 5 . 8 2 . . 4 . . . 9 2 Escape Stasis 12 | . . . . . . . . 9 . . . . . . . . . . . . 2 . . . 1 . . . . Rewire 146 | . . . . . . . . . . . . 1 . . . . . . . . 120 . . . . . . . 25 Trap . | . . . . . . . . . . . . . . . . . . . . . . . . . . . . . . Miscellaneous . | . . . . . . . . . . . . . . . . . . . . . . . . . . . . . . Route ------- -11/Scrapyard -10/Materials (discovered 3 exits: [*Mat x2] / *Min) -10/Mines (discovered 2 exits: [*Mat] / *Exi) -10/Exiles -9/Mines -8/Materials -8/Garrison (discovered 2 exits: *Mat x2) -8/Materials (discovered 4 exits: *Fac / *Sto x2 / Gar) -8/Garrison (discovered 2 exits: *Fac x2) -7/Factory -7/Waste -7/Factory (discovered 4 exits: *Fac x2 / *Low x2) -7/Lower Caves -7/Lower Caves (discovered 2 exits: *Fac / *Dat) -7/Data Miner -6/Proximity Caves -6/Factory (discovered 3 exits: Fac / *Low / Gar) -6/Garrison (discovered 2 exits: *Fac x2) -6/Factory (discovered 4 exits: *Fac / Low x2 / Gar) -6/Garrison -5/Factory (discovered 3 exits: *Upp / *Ext x2) -5/Extension (discovered 2 exits: *Fac / *Cet) -5/Cetus (discovered 2 exits: *Fac / *Arc) -5/Archives (discovered 2 exits: *Hub x2) -5/Hub_04(d) -5/Garrison -4/Factory -4/Waste -4/Factory (discovered 3 exits: Upp x2 / *Arm) -4/Armory History --------- Turn | Location | Event 5 | -11/Scrapyard | Discovered new exit (range 14) 110 | -11/Scrapyard | Entered Materials 301 | -10/Materials | Build established: Mutant 492 | -10/Materials | Discovered new exit (range 15) 624 | -10/Materials | Discovered new exit (range 16) 710 | -10/Materials | Discovered new exit (range 7) 999 | -10/Materials | Entered Mines 1007 | -10/Mines | Met a Derelict bent on vengeance 1088 | -10/Mines | A weapon hastily lodged in a ceiling crevice suddenly fell to the ground 1354 | -10/Mines | Discovered new exit (range 14) 1376 | -10/Mines | Identified exit to Exiles 1448 | -10/Mines | Deemed a non-threat by the Exiles lab entrance 1765 | -10/Mines | Assembled infested the area 1770 | -10/Mines | Assisted by a Guerilla fighting off Assembled 1806 | -10/Mines | Core integrity fell below 50% 1842 | -10/Mines | Lost 3 parts (1n1u1w) 1964 | -10/Mines | Entered Exiles 2021 | -10/Exiles | Met 8R-AWN 2064 | -10/Exiles | Met EX-HEX 2140 | -10/Exiles | Met EX-DEC 2233 | -10/Exiles | Learned location of Zion (-6) 2260 | -10/Exiles | Met EX-BIN 2282 | -10/Exiles | Aligned with FarCom system 2284 | -10/Exiles | Given EX-Vault access code 2321 | -10/Exiles | Opened EX-Vault 2330 | -10/Exiles | Found XL Autogun Array 2362 | -10/Exiles | Warned to stay clear of 0b10 Research branches 2463 | -10/Exiles | Discovered new exit (range 14) 2484 | -10/Exiles | Left Exiles lab with XL Autogun Array 2484 | -10/Exiles | Entered Mines 2504 | -9/Mines | Assisted by bots powering up and referring to "LRC-V3" 2552 | -9/Mines | Learned location of 1 exit from Proximity Caves 3592 | -9/Mines | Discovered new exit (range 6) 3648 | -9/Mines | Entered Materials 3648 | -8/Materials | Accompanied by 2 allies 3648 | -8/Materials | Evolved 4 slots: Propulsion x1, Utility x1, Weapon x2 3653 | -8/Materials | Led the pair of lost Derelicts to an unsafe place 3844 | -8/Materials | Identified exit to Garrison 3844 | -8/Materials | Entered Garrison 3951 | -8/Garrison | Build established: Skirmisher 4102 | -8/Garrison | Triggered checkpoint 4137 | -8/Garrison | Discovered new exit (range 9) 4185 | -8/Garrison | Triggered checkpoint 4331 | -8/Garrison | Discovered new exit (range 8) 4349 | -8/Garrison | Build established: Scavenger-Skirmisher 4352 | -8/Garrison | Installed Relay Interface Framework 4360 | -8/Garrison | Entered Materials 4402 | -8/Materials | Identified exit to Storage 5209 | -8/Materials | Build established: Skirmisher 5331 | -8/Materials | Discovered new exit (range 10) 5835 | -8/Materials | Central database locked down 5866 | -8/Materials | Identified exit to Garrison 5866 | -8/Materials | Entered Garrison 5912 | -8/Garrison | Triggered checkpoint 6013 | -8/Garrison | Discovered new exit (range 11) 6072 | -8/Garrison | Triggered checkpoint 6188 | -8/Garrison | Discovered new exit (range 8) 6205 | -8/Garrison | Expanded RIF knowledge: Threat Obfuscation 6227 | -8/Garrison | Triggered checkpoint 6261 | -8/Garrison | Garrison Relay disabled 6298 | -8/Garrison | Entered Factory 6298 | -7/Factory | Evolved 2 slots: Utility x2 6337 | -7/Factory | Discovered new exit (range 5) 6836 | -7/Factory | Sucked down chute 6836 | -7/Factory | Entered Waste 6836 | -7/Waste | The area was eerily silent 7088 | -7/Waste | Discovered new exit (range 16) 7179 | -7/Waste | Entered Factory 7208 | -7/Factory | Discovered new exit (range 13) 7485 | -7/Factory | Build established: Derelict-Skirmisher 8326 | -7/Factory | Build established: Skirmisher 8912 | -7/Factory | Fabricated Hvy. Treads? 9232 | -7/Factory | Repaired Coolant Injector 9280 | -7/Factory | Build established: Tank 9292 | -7/Factory | Discovered new exit (range 14) 9563 | -7/Factory | Repaired Broken Hvy. Treads 9913 | -7/Factory | Identified exit to Lower Caves 10028 | -7/Factory | Entered Lower Caves 10044 | -7/Lower Caves | Learned 4 Factory zone layouts 10136 | -7/Lower Caves | Found Prototype Device 10174 | -7/Lower Caves | Identified Heart of Steel 10566 | -7/Lower Caves | Build established: Mutant 10679 | -7/Lower Caves | Spotted B-75 Beast 11205 | -7/Lower Caves | Build established: Derelict-Mutant 11664 | -7/Lower Caves | Attracted the attention of an 0b10 checkpoint 11788 | -7/Lower Caves | Discovered new exit (range 16) 11891 | -7/Lower Caves | Heart of Steel transformed into Warbot 12111 | -7/Lower Caves | Build established: Derelict-Gunner 12186 | -7/Lower Caves | Entered another Lower Caves area 12186 | -7/Lower Caves | Accompanied by 1 ally (Warbot) 12265 | -7/Lower Caves | Discovered new exit (range 9) 12813 | -7/Lower Caves | Attracted the attention of an 0b10 checkpoint 12871 | -7/Lower Caves | Discovered new exit (range 9) 13309 | -7/Lower Caves | Encountered a Warlord checkpoint 13676 | -7/Lower Caves | Entered Data Miner 13676 | -7/Data Miner | Accompanied by 1 ally (Warbot) 13679 | -7/Data Miner | Discovered new exit (range 7) 13709 | -7/Data Miner | Met Data Miner 13741 | -7/Data Miner | Learned location of Section 7 (-2) 13741 | -7/Data Miner | Acquired the access code to Warlord's prototype stash 13762 | -7/Data Miner | Received God Mode back door access code from Data Miner 13825 | -7/Data Miner | Entered Proximity Caves 13825 | -6/Proximity Caves | Accompanied by 1 ally (Warbot) 13826 | -6/Proximity Caves | Identified exit to Factory 13948 | -6/Proximity Caves | Attracted the attention of an 0b10 checkpoint 13949 | -6/Proximity Caves | Escorted by Enhanced Grunt 14059 | -6/Proximity Caves | Spotted B-75 Beast 14074 | -6/Proximity Caves | Destroyed B-75 Beast 14207 | -6/Proximity Caves | Learned location of Extension (-5) 14242 | -6/Proximity Caves | Learned 4 Factory zone layouts 14705 | -6/Proximity Caves | Attracted the attention of an 0b10 outpost 14770 | -6/Proximity Caves | Found Prototype Device 14771 | -6/Proximity Caves | Identified Exp. Thermal Shield 15556 | -6/Proximity Caves | Entered Factory 15556 | -6/Factory | Accompanied by 3 allies (Warbot) 15556 | -6/Factory | Evolved 2 slots: Utility x2 15557 | -6/Factory | Identified exit to Factory 15861 | -6/Factory | Discovered new exit (range 15) 15911 | -6/Factory | Identified exit to Garrison 15911 | -6/Factory | Entered Garrison 15911 | -6/Garrison | Accompanied by 2 allies (Warbot) 16014 | -6/Garrison | Triggered checkpoint 16041 | -6/Garrison | Build established: Scavenger-Skirmisher 16086 | -6/Garrison | Discovered new exit (range 9) 16148 | -6/Garrison | Triggered checkpoint 16202 | -6/Garrison | Triggered checkpoint 16231 | -6/Garrison | Discovered new exit (range 15) 16261 | -6/Garrison | Expanded RIF knowledge: Alert ID Control 16322 | -6/Garrison | Garrison Relay disabled 16462 | -6/Garrison | Entered Factory 16462 | -6/Factory | Accompanied by 2 allies (Warbot) 16655 | -6/Factory | Build established: Bothacker-Skirmisher 17042 | -6/Factory | Build established: Bothacker-Tank 17175 | -6/Factory | Discovered exit to Factory (range 11) 17350 | -6/Factory | Identified exit to Lower Caves 17518 | -6/Factory | Cargo convoy interrupted 17546 | -6/Factory | Destroyed 7 combat bots 17721 | -6/Factory | Garrison activated, responded to threat 17762 | -6/Factory | Build established: Gunner 17876 | -6/Factory | Identified exit to Garrison 17876 | -6/Factory | Entered Garrison 17884 | -6/Garrison | Expanded RIF knowledge: Watcher Feeds 17931 | -6/Garrison | Triggered checkpoint 18035 | -6/Garrison | Garrison Relay disabled 18083 | -6/Garrison | Triggered checkpoint 18121 | -6/Garrison | Triggered checkpoint 18154 | -6/Garrison | Triggered checkpoint 18155 | -6/Garrison | Triggered checkpoint 18405 | -6/Garrison | Discovered exit to Factory (range 14) 18696 | -6/Garrison | Entered Factory 18696 | -5/Factory | Evolved 2 slots: Utility x2 18826 | -5/Factory | Incoming investigation squad redirected 18911 | -5/Factory | Incoming investigation squad redirected 19466 | -5/Factory | Discovered new exit (range 3) 20175 | -5/Factory | Build established: Infiltrator-Gunner 20203 | -5/Factory | Discovered new exit (range 9) 20399 | -5/Factory | Identified exit to Upper Caves 21118 | -5/Factory | Build established: Gunner 21294 | -5/Factory | Discovered new exit (range 16) 21317 | -5/Factory | Identified exit to Extension 21320 | -5/Factory | Entered Extension 21473 | -5/Extension | Rescued A7 21781 | -5/Extension | Rescued a captive Derelict 21952 | -5/Extension | Build established: Commander-Gunner 22114 | -5/Extension | Spotted B-75 Beast 22130 | -5/Extension | Allies destroyed B-75 Beast 22148 | -5/Extension | Spotted B-75 Beast 22158 | -5/Extension | Destroyed B-75 Beast 22264 | -5/Extension | Found Prototype Processor 22264 | -5/Extension | Identified Exp. Targeting Computer 22299 | -5/Extension | Rescued a captive Derelict 22437 | -5/Extension | Build established: Scavenger-Gunner 22845 | -5/Extension | Disrupted transfer network 22971 | -5/Extension | Extracted ID and sensor layout for unrecognized location from A7's data core 22981 | -5/Extension | Discovered new exit (range 15) 22983 | -5/Extension | Discovered new exit (range 15) 23041 | -5/Extension | Entered Cetus 23041 | -5/Cetus | Accompanied by 2 allies 23063 | -5/Cetus | Spotted Cetus Guard 23063 | -5/Cetus | Spotted Cetus Guard 23065 | -5/Cetus | Spotted Cetus Guard 23065 | -5/Cetus | Spotted Cetus Guard 23066 | -5/Cetus | Allies destroyed Cetus Guard 23076 | -5/Cetus | Destroyed Cetus Guard 23076 | -5/Cetus | Allies destroyed Cetus Guard 23083 | -5/Cetus | Destroyed Cetus Guard 23191 | -5/Cetus | Incoming investigation squad redirected 23398 | -5/Cetus | Discovered new exit (range 15) 23429 | -5/Cetus | Spotted Cetus Guard 23430 | -5/Cetus | Spotted Cetus Guard 23437 | -5/Cetus | Destroyed Cetus Guard 23437 | -5/Cetus | Destroyed Cetus Guard 23437 | -5/Cetus | Spotted Cetus Guard 23437 | -5/Cetus | Spotted Cetus Guard 23447 | -5/Cetus | Destroyed Cetus Guard 23451 | -5/Cetus | Destroyed Cetus Guard 23469 | -5/Cetus | Discovered new exit (range 15) 23479 | -5/Cetus | Met Revision 17 23615 | -5/Cetus | Entered Archives 23705 | -5/Archives | Unable to access archive contents 23708 | -5/Archives | Discovered new exit (range 16) 24023 | -5/Archives | Discovered new exit (range 16) 24051 | -5/Archives | Entered Hub_04(d) 24765 | -5/Hub_04(d) | Network Hub disabled 24838 | -5/Hub_04(d) | Spotted Lightning 24862 | -5/Hub_04(d) | Incoming investigation squad redirected 24915 | -5/Hub_04(d) | Network Hub disabled 25086 | -5/Hub_04(d) | Network Hub disabled 25172 | -5/Hub_04(d) | Destroyed 8 combat bots 25262 | -5/Hub_04(d) | Identified exit to Garrison 25262 | -5/Hub_04(d) | Entered Garrison 25350 | -5/Garrison | Triggered checkpoint 25375 | -5/Garrison | Garrison Relay disabled 25552 | -5/Garrison | Triggered checkpoint 25586 | -5/Garrison | Spotted B-75 Beast 25666 | -5/Garrison | Destroyed B-75 Beast 25748 | -5/Garrison | Triggered checkpoint 25811 | -5/Garrison | Discovered new exit (range 15) 25844 | -5/Garrison | Expanded RIF knowledge: Hotswap 25975 | -5/Garrison | Triggered checkpoint 26343 | -5/Garrison | Entered Factory 26343 | -4/Factory | Evolved 2 slots: Power x1, Propulsion x1 26614 | -4/Factory | Sucked down chute 26614 | -4/Factory | Entered Waste 26645 | -4/Waste | Spotted C-40 Crusher 26658 | -4/Waste | Destroyed C-40 Crusher 26665 | -4/Waste | Destroyed C-40 Crusher 26674 | -4/Waste | Crushed by Compactor (0 parts destroyed, 1 dropped) 26675 | -4/Waste | Destroyed C-40 Crusher 26685 | -4/Waste | Destroyed C-40 Crusher 26695 | -4/Waste | Spotted C-40 Crusher 26767 | -4/Waste | Spotted C-40 Crusher 26770 | -4/Waste | Destroyed C-40 Crusher 26812 | -4/Waste | Discovered new exit (range 15) 26818 | -4/Waste | Destroyed C-40 Crusher 26847 | -4/Waste | Entered Factory 27439 | -4/Factory | Identified exit to Upper Caves 27439 | -4/Factory | Identified exit to Armory 27898 | -4/Factory | Lost 4 parts (1n2u1w) 27952 | -4/Factory | Entered Armory 28186 | -4/Armory | Assisted by bots powering up and referring to "LRC-V3" 28201 | -4/Armory | Incoming investigation squad redirected 29034 | -4/Armory | Destroyed 8 combat bots 29240 | -4/Armory | Build established: Gunner 29402 | -4/Armory | Fabricated Lyr. Heavy Armor Plating? 29713 | -4/Armory | Spotted B-86 Titan 29768 | -4/Armory | System corruption reached 10% 29894 | -4/Armory | Destroyed B-86 Titan 29960 | -4/Armory | Self-destructed Last Messages --------------- 29944_ Adv. Transmission Jammer destroyed. 29944_ Penetrated by Slug. 29944_ Railgun destroyed. 29945_ Slug penetrates Wall. 29947_ Slug penetrates H-77 Assassin. 29947_ H-77 Assassin suffers critical hit (Destroy). 29947_ Destroyed Coil Gun. 29948_ Penetrated by Slug. 29950_ Slug penetrates H-77 Assassin. 29950_ H-77 Assassin suffers critical hit (Destroy). 29950_ H-77 Assassin destroyed. 29951_ Penetrated by Slug. 29952_ ALERT: Rogue bot located, Programmers report to Armory Zone 5C. 29953_ ENDQJ|%HM<>SXV|=IYT= WZLU/IAHRY1:>IU=YAN 29953_ Slug penetrates H-77 Assassin. 29954_ Penetrated by Slug. 29954_ Adv. Heavy Siege Treads destroyed. 29957_ Penetrated by Slug. [Achievement: 30k Club] [Achievement: Punisher] Map ----- +----------------------------------------------------+ | ###/### # #?????????????????????????? | | #=!!!|# # ##### ????????????????????? | | # %%*%" ????????????????????? | | #/!/ ! ???????????????????? | | # ???????????????????? | | # ????????????????????? | | # ????????????????????? | | # #??????????????????? | | #"### % p #??????????????????? | | # ### #??????????????????? | | # #"" #??????????????????? | | # #" #??????????????????? | | ## # " ###### ????????????? | | # ##T p ????????????? | | ##" h ??????????? | | ##" h ![= ??????????? | | # ##" = [[= #?????????? | | # ###"%% p [== ??????????? | | ## ## !! * ???????????? | | ?#### % !% ????????????? | | ????# ["" h """????????????? | | ????# "" " """ ? ?????????? | | ????# """ F" """ ###???????? | | ????# "" " ??????? | | ????# ??????? | | ????# @ ??????? | | ????# ########+######### ???????? | | ????# # = #?????????????? | | ????# # "" #?????????????? | | ????# # """"""" F" #?????????????? | | ????# # """"""" " #?????????????? | | ????# # """"""" "" #?????????????? | | ????# #! #?????????????? | | ????# ###?############?????????????? | | ????# ????????????????????????????? | | ????# ????????????????????????????? | | ?????####????????????????????????????? | | ?????????????????????????????????????? | | ?????????????????????????????????????? | | ??????????????????Y??????????????????? | | ?????????????????????????????????????? | | ?????????????????????????????????????? | | | | | | | | | | | | | | | | | +----------------------------------------------------+ Best States ------------- Heat Dissipation 70 Coolant Potential 65 Energy Generation 41 Energy Capacity 600 Matter Stores 300 Matter Capacity 300 Sight Range 16 Terrain Scan Range 14 Terrain Scan Density 135 Jamming Range 16 Cloak Strength 4 Corruption Containment 12 Armor Coverage 1350 Resistance: TH 30 Resistance: EM 20 Core Shielding 30 Weapon Cycling 20 Evasion (%) 40 Targeting Accuracy 22 Target Analysis 8 Core Analysis 6 Armor Integrity Analysis 40 Recoil Reduction 4 Matter Filtering 50 Offensive Hacking 12 Defensive Hacking 12 Relay Coupler Types 2 Relay Coupler Value 52 Authchip Count 1 Item Schematics ----------------- Hcp. Storage Unit | -10/Materials | Hacked Fission Core | -8/Materials | Scanalyzed Mining Claw | -8/Materials | Extracted Arm. Huge Wheel | -7/Factory | Scanalyzed Hvy. Treads | -7/Factory | Scanalyzed Imp. Datajack | -7/Factory | Extracted Enh. Optical Array | -7/Factory | Hacked Imp. Thermal Shield | -7/Factory | Hacked Adv. System Restoration Module | -7/Factory | Hacked Combat Drone Bay | -7/Data Miner | Free Lgt. Regenerative Plating | -7/Data Miner | Free Biomechanical Wings | -7/Data Miner | Free Gravity Neutralizer | -7/Data Miner | Free Prc. Rocket Launcher | -7/Data Miner | Free Nuclear Pulse Array | -7/Data Miner | Free Imp. Recalibrator | -7/Data Miner | Free Imp. Plasma Cutter | -7/Data Miner | Free Matter Compressor | -7/Data Miner | Free Imp. Transmission Jammer | -7/Data Miner | Free Hardcell Cannon | -7/Data Miner | Free HERF Cannon | -6/Factory | Hacked Magnetic Acceleration Cannon | -6/Factory | Hacked Coil Gun | -6/Factory | Scanalyzed Antimatter Reactor | -6/Factory | Scanalyzed KE Penetrator | -5/Factory | Scanalyzed Tiamat Missile Launcher | -5/Factory | Scanalyzed Imp. Target Analyzer | -5/Factory | Scanalyzed Enh. Fission Core | -5/Factory | Scanalyzed Lyr. Heavy Armor Plating | -5/Factory | Extracted Hvy. Phase Cannon | -5/Factory | Extracted Lrn. Proton Cannon | -5/Factory | Extracted Energy Filter | -5/Factory | Extracted Adv. Sensor Array | -5/Factory | Extracted Flail | -5/Factory | Extracted Adv. Trap Scanner | -5/Extension | Hacked Centrium Wheel | -5/Extension | Hacked Imp. Heavy Siege Treads | -5/Extension | Hacked Adv. Cooling System | -5/Extension | Hacked Coolant Network | -5/Hub_04(d) | Hacked Robot Schematics ------------------ M-13 Machinist | -10/Materials | Hacked O-16 Technician | -10/Mines | Hacked S-27 Virus | -7/Data Miner | Free M-14 Sweeper | -7/Data Miner | Free G-47 Trooper | -7/Data Miner | Free L-41 Fighter | -7/Data Miner | Free R-10 Processor | -7/Data Miner | Free A-15 Conveyor | -7/Data Miner | Free Fabricated ------------ Hvy. Treads | x2 | -7/Factory Lyr. Heavy Armor Plating | x1 | -4/Armory Alien Tech Used ----------------- None Achievements -------------- 30k Club Below Punisher Revising The Future Challenges ------------ None Game ------ Seed PoweredGaussThruster Manual? 0 Play Time 06:00:59 Cumulative 111.3 hours Start 2022.11.08 @ 09:23:15 End 2022.11.13 @ 17:59:41 Sessions 17 Manual Loads 0 Difficulty Rogue Special Mode None Game No. 160 Rogue 160 Adventurer 0 Explorer 0 Win Type - Total 1 Types 0/0/0/1/0/0/0/0/0 Lore% 58 Gallery% 67 Achievement% 51 Wizard Run 0 Options --------- ASCII 0 Keyboard 0 Movement Numpad Keybinds 0 Fullscreen 1 Font 14/SmallcapsGlow Map View 84x54 Tactical HUD 1 Map Filters NONE Filters NONE Steam 1 RUN: a80778b6-b6cc-4573-b7cc-7dac6648cc13